[Event "10th Cherry Blossom Classic 2023"]
[Site "Dulles"]
[Date "2023.05.27"]
[Round "4.16"]
[White "Ismayilova, Khanim"]
[Black "Sriniaiyer, Sudarshan"]
[Result "0-1"]
[ECO "A17"]
[WhiteElo "1562"]
[BlackElo "2211"]
[Annotator "TA"]
[PlyCount "112"]
[EventDate "2023.05.24"]
[EventType "swiss"]
[EventCountry "USA"]
[SourceTitle "playchess.com"]
[Source "ChessBase"]
[SourceQuality "1"]
[TimeControl "5400+30"]

{[%evp 9,112,9,18,4,16,23,20,0,0,-6,-7,-11,-6,-16,-16,-16,-13,-54,-12,-16,-17,-28,-22,-17,29,-46,-62,-69,-13,-20,-21,-35,0,-18,-8,-20,0,-142,-139,-162,-170,-356,-270,-289,-276,-512,-496,-617,-604,-652,-662,-662,-649,-595,-262,-240,-187,-187,-191,-173,-152,-164,-127,-212,-172,-219,-131,-209,-205,-319,-295,-340,-195,-237,-185,-281,-210,-205,-204,-210,-206,-241,-191,-256,-248,-378,-371,-479,-479,-440,-426,-967,-967,-4694,-4708,-29975,-29975,-29974,-29978,-29978,-29979,-29978,-29980,-29979,-29979]} 1. c4 {[%emt 0:00:02]} e6 {[%emt 0:02:36]} 2. Nc3 {[%emt 0:00:07]} d5 {[%emt 0:00:08]} 3. e3 {[%emt 0:00:04]} Nf6 {[%emt 0:00:15]} 4. Nf3 {[%emt 0:00:11]} a6 {[%emt 0:00:42]} 5. b3 {[%emt 0:02:03]} Bd6 {[%emt 0:00:36]} 6. Bb2 {[%emt 0:00:58] A17: English Opening: 1...Nf6 with ...Bb4.} b6 {[%emt 0:00:37]} 7. d4 {[%emt 0:10:05]} Bb7 {[%emt 0:00:58]} 8. cxd5 {[%emt 0:01:54] The position is equal.} exd5 {[%emt 0:00:23]} 9. Bd3 {[%emt 0:01:14]} Nbd7 {[%emt 0:00:48] Repels Ne5} 10. Qc2 {[%emt 0:08:39]} Qe7 {[%emt 0:01:40] [#]} 11. Ne2 $146 {[%emt 0:16:01]} ({Predecessor:} 11. O-O O-O 12. Ne2 Ne4 13. Ng3 f5 14. Rac1 c6 15. Rfe1 g5 16. Nd2 g4 17. Ndf1 {1-0 Derakhshani,B (2380)-Johnson,D (2189) London Mindsports IM-A 2023 (3)}) 11... O-O {[%emt 0:11:34]} 12. Ng3 {[%emt 0:02:29]} g6 {[%emt 0:01:00] Wards off Nf5} 13. Nd2 {[%emt 0:05:21]} Rfe8 {[%emt 0:03:49]} 14. O-O {[%emt 0:01:42]} c5 {[%emt 0:09:29]} 15. Nf3 {[%emt 0:07:49]} Rac8 {[%emt 0:12:47]} 16. Qe2 {[%emt 0:00:54]} a5 {[%emt 0:01:56]} (16... b5 {deserves consideration.} 17. dxc5 Nxc5) 17. Ba6 {[%emt 0:04:32]} (17. Bb5 $11) 17... Bxa6 $15 {[%emt 0:04:23]} 18. Qxa6 {[%emt 0:00:01]} Ra8 {[%emt 0:00:59]} (18... Bxg3 $1 $15 19. hxg3 c4) 19. Qb5 {[%emt 0:01:50] [#]} a4 $1 {[%emt 0:01:20]} 20. Rac1 {[%emt 0:05:41]} Rec8 {[%emt 0:03:45][%cal Oc5c4]} 21. Qd3 {[%emt 0:02:18]} axb3 {[%emt 0:05:32]} 22. axb3 {[%emt 0:00:44]} Ra2 {[%emt 0:00:11] Hoping for ...Bxg3.} 23. Rc2 {[%emt 0:01:04] [#] White is on the road to losing.} (23. Qb1 $11 {keeps the balance.} Ra7 24. Rfd1) 23... c4 $1 $17 {[%emt 0:01:42][%mdl 512] Black is more active.} 24. Qe2 {[%emt 0:04:10]} (24. Qd1 b5) 24... b5 {[%emt 0:04:37][%cal Oc4c3]} 25. e4 $2 {[%emt 0:06:02]} (25. bxc4 dxc4 26. Ra1 Rxa1+ 27. Bxa1) 25... Bxg3 {[%emt 0:03:53]} (25... Nxe4 $2 26. Nxe4 Qxe4 27. Qd1 $19) 26. hxg3 {[%emt 0:01:39]} Qxe4 {[%emt 0:01:25]} (26... Nxe4 $2 {loses.} 27. Bc1 Rxc2 28. Qxc2 $19) (26... dxe4 $2 27. bxc4 bxc4 28. Rfc1 $19) 27. Qxe4 {[%emt 0:00:58]} (27. Qd1) 27... Nxe4 $19 {[%emt 0:00:15]} 28. Ra1 {[%emt 0:00:19]} Rca8 {[%emt 0:02:54]} 29. Rxa2 {[%emt 0:00:43]} Rxa2 {[%emt 0:00:01]} 30. bxc4 {[%emt 0:00:08]} dxc4 {[%emt 0:00:33]} 31. Ne1 {[%emt 0:00:51] [#]} c3 {[%emt 0:01:36]} 32. Bc1 {[%emt 0:00:06]} Ra4 {[%emt 0:09:13] White must now prevent ...b4.} 33. f3 {[%emt 0:03:10]} Nxg3 {[%emt 0:00:02]} 34. Kh2 {[%emt 0:10:55]} Nf5 {[%emt 0:01:46]} 35. Rxc3 {[%emt 0:00:04]} f6 {[%emt 0:04:58]} ({Not} 35... Nxd4 36. Rc8+ Kg7 37. Bb2 $17) 36. d5 {[%emt 0:01:05]} (36. Rc7 $17 Rxd4 37. Bb2) 36... Rd4 {[%emt 0:01:53]} 37. Rd3 {[%emt 0:00:02]} (37. g4 $142 Ne7 38. Rc7 Rxd5 39. Ng2) 37... Rc4 {[%emt 0:00:56]} ({Black should try} 37... Kf7 $19 {Threatens to win with ...b4.} 38. Rxd4 Nxd4) 38. Bd2 {[%emt 0:01:25]} (38. Bb2 $17) 38... Kf7 {[%emt 0:00:15]} 39. f4 {[%emt 0:01:19]} (39. g4 $142 Ne5 40. Ra3 (40. gxf5 $2 Nxd3 41. fxg6+ hxg6 $19)) 39... Nc5 {[%emt 0:02:02]} 40. Ra3 {[%emt 0:00:42]} Na4 {[%emt 0:02:09] A dynamic duo of knights.} (40... b4 $142 41. Ra8 Ne4) 41. Nf3 {[%emt 0:00:45]} Nd4 {[%emt 0:00:38]} 42. d6 {[%emt 0:00:48]} (42. Ba5 {was necessary.}) 42... Nxf3+ {[%emt 0:00:16]} 43. Rxf3 {[%emt 0:00:19][%mdl 4096] Endgame KRB-KRN} Rd4 {[%emt 0:00:04] Prevents Rd3} 44. Be1 {[%emt 0:00:11]} Rxd6 {[%emt 0:00:05]} 45. Rb3 {[%emt 0:00:03]} Rd5 {[%emt 0:00:03]} 46. Bf2 {[%emt 0:00:34]} (46. g4 $142) 46... Ke6 {[%emt 0:01:52]} 47. Kg3 {[%emt 0:00:23]} (47. g4 $142) 47... Nc5 {[%emt 0:01:07]} 48. Bxc5 {[%emt 0:00:18]} Rxc5 {[%emt 0:00:02] KR-KR} 49. Kf3 {[%emt 0:01:13]} Kd5 {[%emt 0:00:29]} 50. Rd3+ {[%emt 0:00:33]} (50. Rb1 $142) 50... Kc4 {[%emt 0:00:35]} 51. Rd7 {[%emt 0:00:05]} b4 {[%emt 0:00:20][%cal Bb5b4,Bb4b3,Bb3b2][%mdl 32]} 52. Rxh7 {[%emt 0:00:05]} b3 {[%emt 0:00:02] Black mates.} 53. Rb7 {[%emt 0:00:09]} Rb5 {[%emt 0:00:26]} 54. Rc7+ {[%emt 0:00:05]} Kb4 {[%emt 0:00:03]} 55. Rc1 {[%emt 0:00:06]} b2 {[%emt 0:00:03]} 56. Rb1 {[%emt 0:00:17]} Kc3 {[%emt 0:00:02] Weighted Error Value: White=0.67/Black=0.28 (precise)} 0-1

[Event "10th Cherry Blossom Classic 2023"]
[Site "Dulles"]
[Date "2023.05.27"]
[Round "4.17"]
[White "Michelle Catherina, P."]
[Black "Slate, Kent"]
[Result "0-1"]
[ECO "B33"]
[WhiteElo "2193"]
[BlackElo "1989"]
[Annotator "TA"]
[PlyCount "66"]
[EventDate "2023.05.24"]
[EventType "swiss"]
[EventCountry "USA"]
[SourceTitle "playchess.com"]
[Source "ChessBase"]
[SourceQuality "1"]
[TimeControl "5400+30"]

{[%evp 20,66,26,5,5,5,12,6,9,8,16,8,32,1,10,8,12,18,33,10,37,8,18,13,19,17,65,63,34,-150,-147,-154,-163,-177,-183,-173,-168,-152,-150,-539,-506,-29964,-5377,-29976,-960,-29967,-5098,-29996,-29978]} 1. e4 {[%emt 0:04:33]} c5 {[%emt 0:00:41]} 2. Nf3 {[%emt 0:00:10]} Nc6 {[%emt 0:00:26]} 3. d4 {[%emt 0:00:22]} cxd4 {[%emt 0:00:11]} 4. Nxd4 {[%emt 0:00:02]} Nf6 {[%emt 0:00:11]} 5. Nc3 {[%emt 0:00:03]} e5 {[%emt 0:00:08]} 6. Ndb5 {[%emt 0:00:10]} d6 {[%emt 0:00:08]} 7. Bg5 {[%emt 0:00:07]} a6 {[%emt 0:00:06]} 8. Na3 {[%emt 0:00:03]} b5 {[%emt 0:00:06]} 9. Nd5 {[%emt 0:00:06]} Be7 {[%emt 0:00:32]} 10. Bxf6 {[%emt 0:00:07]} Bxf6 {[%emt 0:00:06]} 11. c4 {[%emt 0:00:03]} b4 {[%emt 0:00:06] B33: Sicilian: Pelikan and Sveshnikov Variations.} 12. Nc2 {[%emt 0:00:07]} O-O {[%emt 0:00:06]} 13. g3 {[%emt 0:01:17]} a5 {[%emt 0:00:08] The position is equal.} 14. Bg2 {[%emt 0:00:29]} g6 {[%emt 0:02:10] is the new trend.} 15. O-O {[%emt 0:03:22]} Be6 {[%emt 0:02:42]} 16. Qd3 {[%emt 0:18:10]} Bg7 {[%emt 0:01:43]} 17. Rad1 {[%emt 0:02:58]} Rb8 {[%emt 0:09:26]} 18. b3 {[%emt 0:02:15]} Kh8 {[%emt 0:05:04] [#]} 19. Qe2 $146 {[%emt 0:03:18]} ({Predecessor:} 19. Nde3 Qb6 20. Kh1 Rbd8 21. f4 f5 22. exf5 gxf5 23. Nd5 Qa7 24. Bh3 e4 25. Qe2 {1-0 Carbonell Sancho,M (2276)-Blanco Acevedo,C (2355) ESP-chT CECLUB Div2 2021 (6.3)}) 19... Qd7 {[%emt 0:08:42]} 20. Rd2 {[%emt 0:04:39]} Rbd8 {[%emt 0:18:41]} 21. Rfd1 {[%emt 0:03:53]} Qa7 {[%emt 0:00:45]} 22. h4 {[%emt 0:08:12]} f5 {[%emt 0:07:25]} (22... Kg8 $11 {is superior.}) 23. exf5 $14 {[%emt 0:02:48]} Bxf5 {[%emt 0:00:14]} 24. Be4 $2 {[%emt 0:07:25]} (24. Nde3 $14 {stays ahead.} Nd4 25. Nxd4 exd4 26. Nxf5 Rxf5 27. Bd5) 24... Bh6 $17 {[%emt 0:03:07]} 25. Bxf5 {[%emt 0:05:18]} gxf5 {[%emt 0:01:42][%cal Bg6f5,Bf5f4,Bf4g3,Bg3f2][%mdl 32]} ({Inferior is} 25... Bxd2 26. Bxg6 Bf4 27. gxf4 hxg6 28. Qg4 $17) 26. Nde3 {[%emt 0:03:45]} f4 {[%emt 0:02:17]} 27. Ng4 {[%emt 0:17:09] [#]} fxg3 $1 {[%emt 0:11:43][%mdl 64] Discovered Attack} ({And not} 27... f3 28. Qe4 Bxd2 29. Qxc6 $15) 28. Rxd6 {[%emt 0:02:13] [#]} Nd4 $1 {[%emt 0:01:31] The board is on fire.} 29. Nxd4 {[%emt 0:06:59] This costs White the game.} (29. Qxe5+ $17 {is tougher.} Bg7 30. R1xd4 Bxe5 31. Rxd8 gxf2+ 32. Kf1 Bxd4 33. Rxf8+ Kg7 34. Rf4) 29... Rxd6 $19 {[%emt 0:00:13]} 30. Nxh6 {[%emt 0:04:24]} (30. Nf3 $19 Rxd1+ 31. Qxd1) 30... gxf2+ {[%emt 0:02:04]} (30... Rxd4 $2 31. Qxe5+ Qg7 32. Qxd4 $18) 31. Kh2 {[%emt 0:00:53]} Rxh6 {[%emt 0:00:26]} (31... Rxd4 $142 32. Qxe5+ Qg7 33. Nf7+ Rxf7 34. Qxd4 Qxd4 35. Rxd4 f1=Q 36. Rd8+ Kg7 37. Rd2 Qf4+ 38. Kg2 Qxd2+ 39. Kg3 Qe3+ 40. Kh2 Rf2+ 41. Kh1 Qe1#) 32. Qxe5+ {[%emt 0:00:28]} Qg7 {[%emt 0:00:06][%cal Rh6h4]} 33. Qe4 {[%emt 0:00:39]} Qf6 {[%emt 0:00:27] Artfully played by Slate.   Weighted Error Value: White=1.09/Black=0.36} 0-1

[Event "10th Cherry Blossom Classic 2023"]
[Site "Dulles"]
[Date "2023.05.27"]
[Round "4.18"]
[White "Su, Kevin"]
[Black "Williams, Justus"]
[Result "0-1"]
[ECO "C54"]
[WhiteElo "2038"]
[BlackElo "2396"]
[Annotator "TA"]
[PlyCount "66"]
[EventDate "2023.05.24"]
[EventType "swiss"]
[EventCountry "USA"]
[SourceTitle "playchess.com"]
[Source "ChessBase"]
[SourceQuality "1"]
[TimeControl "5400+30"]

{[%evp 12,66,17,9,20,11,24,14,20,-11,-3,-31,-31,-31,-35,-34,-33,-123,-96,-105,-58,-75,-70,-135,-139,-261,-256,-258,-265,-253,-255,-266,-266,-260,-239,-253,-243,-245,-219,-236,-227,-267,-265,-309,-300,-315,-314,-365,-361,-525,-505,-760,-686,-1483,-1413,-1782,-1737]} 1. e4 {[%emt 0:00:01]} e5 {[%emt 0:02:11]} 2. Nf3 {[%emt 0:00:06]} Nc6 {[%emt 0:00:04]} 3. Bc4 {[%emt 0:00:09]} Bc5 {[%emt 0:00:28]} 4. O-O {[%emt 0:00:14]} Nf6 {[%emt 0:00:18]} 5. d3 {[%emt 0:00:10]} h6 {[%emt 0:02:48]} 6. c3 {[%emt 0:00:25]} d6 {[%emt 0:01:02]} 7. Re1 {[%emt 0:03:01]} O-O {[%emt 0:01:08] C54: Giuoco Piano: 4 c3 Nf6, main lines with 5 d4 and 5 d3.} 8. Nbd2 {[%emt 0:00:28]} Ne7 {[%emt 0:00:59]} 9. d4 {[%emt 0:15:00]} Bb6 {[%emt 0:00:03] [#] The position is equal.} 10. Bd3 $146 {[%emt 0:04:54]} (10. h3 $5 {[%cal Rd4e5]}) ({Predecessor:} 10. a4 c6 11. dxe5 Ng4 12. Rf1 Ng6 13. exd6 Qxd6 14. Be2 Be6 15. a5 Bc7 16. g3 {1-0 Anand,V (2757)-Mamedyarov,S (2772) Bucharest Superbet blitz 2019 (2)}) 10... exd4 {[%emt 0:04:31]} 11. cxd4 {[%emt 0:00:14]} Nc6 {[%emt 0:00:36]} 12. d5 {[%emt 0:08:16] [#]} Ng4 $1 {[%emt 0:03:12]} 13. Rf1 {[%emt 0:02:32]} (13. dxc6 $2 Nxf2 14. Qc2 Nxd3+ 15. Kh1 Nxe1 16. Nxe1 f5 17. exf5 bxc6 $19) 13... Nce5 {[%emt 0:02:05]} 14. Nc4 {[%emt 0:07:32] [#]} ({White must play} 14. Nxe5 $15 Nxe5 15. Nc4) 14... Nxc4 $1 $17 {[%emt 0:07:20]} 15. Bxc4 {[%emt 0:00:11]} Qe7 {[%emt 0:03:11]} ({Better is} 15... f5 $17 16. e5 dxe5) 16. Bd3 {[%emt 0:13:02]} f5 {[%emt 0:01:45] Black is more active. Black converts the advantage convincingly.} 17. exf5 {[%emt 0:00:59]} (17. Qc2 $1 $15) 17... Bxf5 {[%emt 0:00:22]} 18. h3 {[%emt 0:00:21]} (18. Bxf5 $17 Rxf5 19. Bd2) 18... Bxd3 {[%emt 0:00:26]} 19. Qxd3 {[%emt 0:00:24]} Nxf2 {[%emt 0:00:53]} 20. Rxf2 {[%emt 0:01:11][%cal Oc1d2]} Rxf3 {[%emt 0:00:22][%mdl 64] Remove Defender} (20... Bxf2+ 21. Kxf2 Rae8 22. Bd2 $14) 21. gxf3 {[%emt 0:11:15][%cal Og1f1] And now Kf1! would win.} Qe1+ {[%emt 0:00:19][%mdl 64] Pin, Double Attack} (21... Bxf2+ 22. Kxf2 Qh4+ 23. Kg2 $16) 22. Qf1 {[%emt 0:00:11]} Bxf2+ {[%emt 0:00:07] White is weak on the dark squares} 23. Kg2 {[%emt 0:00:06]} Qxf1+ {[%emt 0:00:19]} 24. Kxf1 $19 {[%emt 0:00:06][%mdl 4096] Endgame KRB-KRB} Bd4 {[%emt 0:00:30]} 25. Bd2 {[%emt 0:00:14]} Rf8 {[%emt 0:00:32]} (25... Bxb2 26. Rb1 Bd4 27. Rxb7) 26. Ke2 {[%emt 0:00:10]} Rf5 {[%emt 0:00:17]} (26... Bxb2 $2 27. Rb1 Bd4 28. f4 $19) 27. Rd1 {[%emt 0:09:29]} Re5+ {[%emt 0:00:50]} (27... Rxd5 28. Be3 c5 29. Bxd4 cxd4 30. b4 $19) (27... Bxb2 $2 {perishes.} 28. Bc1 Bf6 29. f4 $19) 28. Kd3 {[%emt 0:00:29]} Rxd5 {[%emt 0:02:13]} (28... Bxb2 $2 {is the wrong capture.} 29. Kc2 Bd4 30. Ba5 $19) 29. Ke4 {[%emt 0:01:50]} c6 {[%emt 0:00:09][%cal Bc7c6,Bc6d5][%mdl 32]} 30. Bf4 {[%emt 0:00:21]} (30. Rb1 $142) 30... Be5 {[%emt 0:00:40][%mdl 64] Discovered Attack. Black is clearly winning.} ({Worse is} 30... Bxb2 31. Rxd5 cxd5+ 32. Kxd5 $15) 31. Rxd5 {[%emt 0:07:14]} (31. Rd2 $142 Rxd2 32. Bxd2) 31... cxd5+ {[%emt 0:00:03]} 32. Ke3 {[%emt 0:00:21]} g5 {[%emt 0:00:08]} 33. Bxe5 {[%emt 0:00:23]} dxe5 {[%emt 1:07:09] Weighted Error Value: White=0.83/Black=0.03 (flawless)} 0-1

[Event "10th Cherry Blossom Classic 2023"]
[Site "Dulles"]
[Date "2023.05.27"]
[Round "4.20"]
[White "Baim, Elvin"]
[Black "Senft, Sean"]
[Result "0-1"]
[ECO "E81"]
[WhiteElo "1728"]
[BlackElo "2089"]
[Annotator "NA RC"]
[PlyCount "70"]
[EventDate "2023.05.24"]
[EventType "swiss"]
[EventCountry "USA"]
[SourceTitle "playchess.com"]
[Source "ChessBase"]
[SourceQuality "1"]
[TimeControl "5400+30"]

1. d4 {[%emt 0:00:02]} Nf6 {[%emt 0:06:34]} 2. c4 {[%emt 0:00:02]} g6 {[%emt 0:00:09]} 3. Nc3 {[%emt 0:00:01]} Bg7 {[%emt 0:00:15]} 4. e4 {[%emt 0:00:01]} d6 {[%emt 0:00:09]} 5. f3 {[%emt 0:00:04]} O-O {[%emt 0:00:34]} 6. Be3 {[%emt 0:00:06]} Nbd7 {[%emt 0:00:36]} 7. Qd2 {[%emt 0:01:53]} c5 {[%emt 0:00:38]} 8. d5 {[%emt 0:00:33]} Ne5 {[%emt 0:01:12]} 9. Be2 {[%emt 0:11:42]} a6 {[%emt 0:01:52]} 10. g4 {[%emt 0:06:15]} e6 {[%emt 0:13:23]} 11. g5 {[%emt 0:18:08]} Ne8 {[%emt 0:02:30]} 12. Rd1 {[%emt 0:23:40]} exd5 {[%emt 0:02:18]} 13. Nxd5 {[%emt 0:00:29]} Be6 {[%emt 0:10:41]} 14. h3 {[%emt 0:02:43]} Bxd5 {[%emt 0:03:43]} 15. cxd5 {[%emt 0:00:45]} b5 {[%emt 0:03:34]} 16. f4 {[%emt 0:01:17]} Nc4 {[%emt 0:01:23]} 17. Bxc4 {[%emt 0:00:26]} bxc4 {[%emt 0:00:04]} 18. Nf3 {[%emt 0:04:24]} Rb8 {[%emt 0:05:01]} 19. e5 {[%emt 0:00:17]} Qb6 {[%emt 0:02:14]} 20. Rh2 {[%emt 0:00:45]} Nc7 {[%emt 0:01:53]} 21. Re2 {[%emt 0:01:47]} Rbd8 {[%emt 0:02:21]} 22. Qc2 {[%emt 0:04:07]} Qb5 {[%emt 0:14:45]} 23. a4 {[%emt 0:00:45]} Qd7 {[%emt 0:04:20]} 24. exd6 {[%emt 0:01:54]} Ne8 {[%emt 0:01:52]} 25. Bxc5 {[%emt 0:06:07]} Nxd6 {[%emt 0:01:06]} 26. Ne5 {[%emt 0:09:36]} Qxh3 {[%emt 0:00:19]} 27. Rh2 {[%emt 0:00:34]} Qc8 {[%emt 0:00:44]} 28. Nc6 {[%emt 0:01:06]} Rfe8+ {[%emt 0:01:18]} 29. Re2 {[%emt 0:01:00]} Rxe2+ {[%emt 0:02:09]} 30. Qxe2 {[%emt 0:00:16]} Re8 {[%emt 0:00:35]} 31. Ne7+ {[%emt 0:01:25]} Rxe7 {[%emt 0:00:07]} 32. Qxe7 {[%emt 0:00:06]} Qxc5 {[%emt 0:00:07]} 33. Qd8+ {[%emt 0:00:04]} Bf8 {[%emt 0:00:14]} 34. Rd2 {[%emt 0:00:42]} Qg1+ {[%emt 0:01:26]} 35. Ke2 {[%emt 0:00:01]} Ne4 {[%emt 0:00:14]} 0-1

[Event "10th Cherry Blossom Classic 2023"]
[Site "Dulles"]
[Date "2023.05.27"]
[Round "4.21"]
[White "ADU, Oladapo"]
[Black "Vinod, Aarush"]
[Result "1/2-1/2"]
[ECO "E73"]
[WhiteElo "2081"]
[BlackElo "1914"]
[Annotator "NA RC"]
[PlyCount "90"]
[EventDate "2023.05.24"]
[EventType "swiss"]
[EventCountry "USA"]
[SourceTitle "playchess.com"]
[Source "ChessBase"]
[SourceQuality "1"]
[TimeControl "5400+30"]

1. d4 {[%emt 0:00:04]} Nf6 {[%emt 0:01:52]} 2. c4 {[%emt 0:00:20]} g6 {[%emt 0:00:14]} 3. Nc3 {[%emt 0:00:25]} Bg7 {[%emt 0:00:18]} 4. e4 {[%emt 0:00:41]} d6 {[%emt 0:00:14]} 5. Be2 {[%emt 0:00:51]} O-O {[%emt 0:00:26]} 6. Be3 {[%emt 0:00:25]} e5 {[%emt 0:02:23]} 7. d5 {[%emt 0:00:14]} Na6 {[%emt 0:00:21]} 8. h4 {[%emt 0:00:21]} Nc5 {[%emt 0:02:50]} 9. Qc2 {[%emt 0:01:29]} c6 {[%emt 0:01:36]} 10. h5 {[%emt 0:05:10]} cxd5 {[%emt 0:03:21]} 11. cxd5 {[%emt 0:00:12]} Qa5 {[%emt 0:08:19]} 12. h6 {[%emt 0:01:17]} Bh8 {[%emt 0:02:13]} 13. Bd2 {[%emt 0:01:48]} Bd7 {[%emt 0:05:38]} 14. Nf3 {[%emt 0:05:11]} b5 {[%emt 0:15:53]} 15. b4 {[%emt 0:18:21]} Qxb4 {[%emt 0:02:59]} 16. Rb1 {[%emt 0:01:10]} Qa3 {[%emt 0:11:30]} 17. Bxb5 {[%emt 0:00:35]} Bxb5 {[%emt 0:02:16]} 18. Rxb5 {[%emt 0:09:49]} Rfc8 {[%emt 0:04:12]} 19. Ng5 {[%emt 0:01:58]} Rab8 {[%emt 0:07:25]} 20. O-O {[%emt 0:00:35]} Rxb5 {[%emt 0:02:03]} 21. Nxb5 {[%emt 0:00:36]} Qa6 {[%emt 0:01:26]} 22. Nc3 {[%emt 0:02:25]} Ng4 {[%emt 0:02:16]} 23. Nh3 {[%emt 0:48:03]} Qc4 {[%emt 0:03:35]} 24. Qb1 {[%emt 0:00:00]} Bf6 {[%emt 0:04:54]} 25. Nb5 {[%emt 0:00:00]} Be7 {[%emt 0:03:49]} 26. Nxa7 {[%emt 0:00:00]} Re8 {[%emt 0:00:38]} 27. Nc6 {[%emt 0:00:00]} Bf8 {[%emt 0:00:18]} 28. f3 {[%emt 0:00:00]} Qe2 {[%emt 0:01:33]} 29. Qd1 {[%emt 0:00:00]} Qxd1 {[%emt 0:03:07]} 30. Rxd1 {[%emt 0:00:00]} Nf6 {[%emt 0:00:02]} 31. Rb1 {[%emt 0:00:00]} Nfd7 {[%emt 0:00:25]} 32. g4 {[%emt 0:00:00]} Ra8 {[%emt 0:00:41]} 33. Rb2 {[%emt 0:00:00]} f5 {[%emt 0:01:50]} 34. gxf5 {[%emt 0:00:00]} gxf5 {[%emt 0:00:03]} 35. Be3 {[%emt 0:00:00]} fxe4 {[%emt 0:01:51]} 36. Rg2+ {[%emt 0:00:00]} Kf7 {[%emt 0:01:59]} 37. Ng5+ {[%emt 0:00:00]} Ke8 {[%emt 0:00:50]} 38. Nxh7 {[%emt 0:00:00]} exf3 {[%emt 0:00:59]} 39. Nxf8 {[%emt 0:00:00]} Kxf8 {[%emt 0:00:20]} 40. Rg7 {[%emt 0:00:00]} Rxa2 {[%emt 0:01:07]} 41. Bg5 {[%emt 0:00:00]} Rg2+ {[%emt 0:01:11]} 42. Kh1 {[%emt 0:00:00]} Ne4 {[%emt 0:00:52]} 43. Be7+ {[%emt 0:00:00]} Ke8 {[%emt 0:00:01]} 44. Rxg2 {[%emt 0:00:00]} fxg2+ {[%emt 0:00:08]} 45. Kxg2 {[%emt 0:00:00]} Ndf6 {[%emt 0:01:13]} 1/2-1/2